[Event "SVK-ch Open 2018"]
[Site "Banska Stiavnica"]
[Date "2018.07.15"]
[Round "9"]
[White "Jozefek, Michal"]
[Black "Mrvova, Alena"]
[Result "1-0"]
[ECO "D35"]
[WhiteElo "2182"]
[BlackElo "2202"]
[Annotator "NA"]
[PlyCount "89"]
[EventDate "2018.07.07"]
[EventType "swiss"]
[EventCountry "SVK"]
[SourceTitle "playchess.com"]
[Source "ChessBase"]
[SourceQuality "1"]
[TimeControl "40/5400+30:1800+30"]

1. d4 {[%emt 0:00:00]} d5 {[%emt 0:00:00]} 2. c4 {[%emt 0:00:00]} e6 {[%emt 0:00:05]} 3. Nc3 {[%emt 0:00:04]} Nf6 {[%emt 0:00:24]} 4. cxd5 {[%emt 0:00:07]} exd5 {[%emt 0:00:27]} 5. Bg5 {[%emt 0:00:08]} Be7 {[%emt 0:01:10]} 6. e3 {[%emt 0:01:41]} c6 {[%emt 0:01:15]} 7. Bd3 {[%emt 0:00:08]} h6 {[%emt 0:05:57]} 8. Bh4 {[%emt 0:00:32]} Ne4 {[%emt 0:00:28]} 9. Bxe7 {[%emt 0:02:51]} Qxe7 {[%emt 0:00:33]} 10. Nge2 {[%emt 0:02:42]} Nd7 {[%emt 0:02:39]} 11. Bxe4 {[%emt 0:02:50]} dxe4 {[%emt 0:00:34]} 12. Ng3 {[%emt 0:00:22]} Nf6 {[%emt 0:06:38]} 13. Qc2 {[%emt 0:00:47]} O-O {[%emt 0:00:09]} 14. Ngxe4 {[%emt 0:01:00]} Bf5 {[%emt 0:00:27]} 15. Nxf6+ {[%emt 0:02:37]} Qxf6 {[%emt 0:00:04]} 16. Qd2 {[%emt 0:04:49]} Rfe8 {[%emt 0:01:39]} 17. O-O {[%emt 0:02:15]} Rad8 {[%emt 0:00:33]} 18. Rad1 {[%emt 0:01:18]} Qg5 {[%emt 0:06:08]} 19. Ne2 {[%emt 0:10:55]} Bg4 {[%emt 0:01:47]} 20. Rde1 {[%emt 0:07:35]} Bxe2 {[%emt 0:05:07]} 21. Qxe2 {[%emt 0:01:56]} Rxd4 {[%emt 0:02:43]} 22. exd4 {[%emt 0:00:52]} Rxe2 {[%emt 0:00:08]} 23. Rxe2 {[%emt 0:00:05]} Qf6 {[%emt 0:00:20]} 24. Rd1 {[%emt 0:01:07]} Qd6 {[%emt 0:01:09]} 25. h3 {[%emt 0:02:09]} Kh7 {[%emt 0:00:42]} 26. b3 {[%emt 0:01:29]} Kg6 {[%emt 0:00:18]} 27. Rd3 {[%emt 0:04:38]} Kh7 {[%emt 0:01:31]} 28. d5 {[%emt 0:00:59]} cxd5 {[%emt 0:02:47]} 29. Red2 {[%emt 0:01:14]} Qe5 {[%emt 0:03:19]} 30. Rxd5 {[%emt 0:01:01]} Qe1+ {[%emt 0:00:04]} 31. Kh2 {[%emt 0:00:01]} a6 {[%emt 0:02:58]} 32. Rd7 {[%emt 0:04:38]} b5 {[%emt 0:02:07]} 33. Rc2 {[%emt 0:07:05]} Qe5+ {[%emt 0:01:59]} 34. g3 {[%emt 0:00:08]} Qf5 {[%emt 0:00:05]} 35. Rcd2 {[%emt 0:00:17]} Qf3 {[%emt 0:05:54]} 36. Ra7 {[%emt 0:02:25]} Qf6 {[%emt 0:10:08]} 37. Kg1 {[%emt 0:00:47]} Kg6 {[%emt 0:01:10]} 38. Rdd7 {[%emt 0:01:07]} Qa1+ {[%emt 0:00:07]} 39. Kg2 {[%emt 0:00:36]} Qxa2 {[%emt 0:00:06]} 40. Rxf7 {[%emt 0:00:18]} Qxb3 {[%emt 0:00:12]} 41. Rxg7+ {[%emt 0:30:18]} Kf6 {[%emt 0:30:23]} 42. Rgc7 {[%emt 0:05:30]} Qe6 {[%emt 0:04:01]} 43. Rh7 {[%emt 0:01:48]} Qd5+ {[%emt 0:06:36]} 44. Kh2 {[%emt 0:00:28]} Qa2 {[%emt 0:00:07]} 45. Rxa6+ {[%emt 0:00:35]} 1-0

[Event "SVK-ch Open 2018"]
[Site "Banska Stiavnica"]
[Date "2018.07.15"]
[Round "9"]
[White "Hrbek, Stepan"]
[Black "Dylag, Emilia"]
[Result "0-1"]
[ECO "B90"]
[WhiteElo "2129"]
[BlackElo "1935"]
[Annotator "NA"]
[PlyCount "72"]
[EventDate "2018.07.07"]
[EventType "swiss"]
[EventCountry "SVK"]
[SourceTitle "playchess.com"]
[Source "ChessBase"]
[SourceQuality "1"]
[TimeControl "40/5400+30:1800+30"]

1. e4 {[%emt 0:00:00]} c5 {[%emt 0:00:00]} 2. Nf3 {[%emt 0:00:00]} d6 {[%emt 0:00:00]} 3. d4 {[%emt 0:00:00]} cxd4 {[%emt 0:00:08]} 4. Nxd4 {[%emt 0:00:00]} Nf6 {[%emt 0:00:15]} 5. Nc3 {[%emt 0:00:00]} a6 {[%emt 0:00:13]} 6. Be3 {[%emt 0:00:19]} e5 {[%emt 0:00:15]} 7. Nb3 {[%emt 0:00:05]} Be7 {[%emt 0:00:15]} 8. f3 {[%emt 0:00:50]} Be6 {[%emt 0:01:02]} 9. Qd2 {[%emt 0:00:33]} O-O {[%emt 0:00:10]} 10. O-O-O {[%emt 0:00:09]} a5 {[%emt 0:00:43]} 11. Bb5 {[%emt 0:07:23]} Na6 {[%emt 0:06:39]} 12. Qf2 {[%emt 0:05:22]} Qb8 {[%emt 0:13:31]} 13. Bb6 {[%emt 0:04:16]} Nc7 {[%emt 0:03:45]} 14. a4 {[%emt 0:10:41]} Rc8 {[%emt 0:14:12]} 15. Kb1 {[%emt 0:07:09]} Nxb5 {[%emt 0:02:58]} 16. Nxb5 {[%emt 0:00:29]} Ra6 {[%emt 0:01:24]} 17. Rd2 {[%emt 0:04:03]} Nd7 {[%emt 0:11:04]} 18. Ba7 {[%emt 0:00:42]} Qa8 {[%emt 0:00:15]} 19. Be3 Rc4 {[%emt 0:04:47]} 20. Rhd1 {[%emt 0:03:06]} Qb8 {[%emt 0:12:22]} 21. Nc3 {[%emt 0:08:24]} Rxc3 {[%emt 0:03:29]} 22. bxc3 {[%emt 0:00:30]} b5 {[%emt 0:01:19]} 23. axb5 {[%emt 0:10:58]} Qxb5 {[%emt 0:00:25]} 24. Rd5 {[%emt 0:00:08]} Qb7 {[%emt 0:04:05]} 25. Qe2 {[%emt 0:14:56]} a4 {[%emt 0:02:24]} 26. Qb5 {[%emt 0:01:39]} Qxb5 {[%emt 0:07:16]} 27. Rxb5 {[%emt 0:00:06]} axb3 {[%emt 0:00:07]} 28. cxb3 {[%emt 0:00:23]} h6 {[%emt 0:01:05]} 29. b4 {[%emt 0:06:15]} Bg5 {[%emt 0:01:57]} 30. Bxg5 {[%emt 0:03:03]} hxg5 {[%emt 0:00:07]} 31. Rb7 {[%emt 0:00:11]} Rc6 {[%emt 0:00:53]} 32. Kc2 {[%emt 0:02:11]} Ra6 {[%emt 0:02:53]} 33. b5 {[%emt 0:01:41]} Ra2+ {[%emt 0:00:11]} 34. Kb1 {[%emt 0:00:09]} Rxg2 {[%emt 0:01:11]} 35. b6 {[%emt 0:08:33]} Nc5 {[%emt 0:00:32]} 36. Rc7 {[%emt 0:01:17]} Ba2+ {[%emt 0:00:14]} 0-1

[Event "SVK-ch Open 2018"]
[Site "Banska Stiavnica"]
[Date "2018.07.15"]
[Round "9"]
[White "Bochnicka, Vladimir"]
[Black "Sikora, Jan"]
[Result "1/2-1/2"]
[ECO "B94"]
[WhiteElo "2092"]
[BlackElo "2209"]
[Annotator "NA"]
[PlyCount "83"]
[EventDate "2018.07.07"]
[EventType "swiss"]
[EventCountry "SVK"]
[SourceTitle "playchess.com"]
[Source "ChessBase"]
[SourceQuality "1"]
[TimeControl "40/5400+30:1800+30"]

1. e4 {[%emt 0:00:00]} c5 {[%emt 0:00:00]} 2. Nf3 {[%emt 0:00:00]} d6 {[%emt 0:00:00]} 3. d4 {[%emt 0:00:01]} cxd4 {[%emt 0:00:00]} 4. Nxd4 {[%emt 0:00:06]} Nf6 {[%emt 0:00:03]} 5. Nc3 {[%emt 0:00:08]} a6 {[%emt 0:00:03]} 6. Bg5 {[%emt 0:00:09]} Nbd7 {[%emt 0:00:31]} 7. Qe2 {[%emt 0:00:17]} b5 {[%emt 0:02:06]} 8. f4 {[%emt 0:00:07]} e5 {[%emt 0:01:39]} 9. fxe5 {[%emt 0:00:12]} dxe5 {[%emt 0:00:08]} 10. O-O-O {[%emt 0:03:00]} Qc7 {[%emt 0:02:28]} 11. Nf5 {[%emt 0:00:55]} h6 {[%emt 0:00:21]} 12. Bh4 {[%emt 0:01:11]} g6 {[%emt 0:00:03]} 13. Ne3 {[%emt 0:00:16]} Bb7 {[%emt 0:00:03]} 14. g4 {[%emt 0:01:22]} b4 {[%emt 0:11:23]} 15. Ncd5 {[%emt 0:08:21]} Nxd5 {[%emt 0:03:28]} 16. Nxd5 {[%emt 0:00:07]} Bxd5 {[%emt 0:00:18]} 17. exd5 {[%emt 0:00:14]} Bd6 {[%emt 0:01:49]} 18. Bg2 {[%emt 0:05:54]} Rc8 {[%emt 0:03:05]} 19. Kb1 {[%emt 0:03:50]} a5 {[%emt 0:02:03]} 20. Rhf1 {[%emt 0:09:08]} a4 {[%emt 0:04:09]} 21. Be4 {[%emt 0:08:00]} O-O {[%emt 0:07:07]} 22. Bf6 {[%emt 0:06:25]} Nxf6 {[%emt 0:22:40]} 23. Rxf6 {[%emt 0:00:02]} Kg7 {[%emt 0:01:03]} 24. Rdf1 {[%emt 0:05:46]} Qe7 {[%emt 0:03:52]} 25. Qf3 {[%emt 0:04:26]} a3 {[%emt 0:14:46]} 26. b3 {[%emt 0:19:52]} Rc3 {[%emt 0:02:30]} 27. Qf2 {[%emt 0:01:30]} Rh3 {[%emt 0:04:24]} 28. Qb6 {[%emt 0:01:23]} Bc5 {[%emt 0:08:11]} 29. Rxg6+ {[%emt 0:00:10]} Kh8 {[%emt 0:00:17]} 30. Rxh6+ {[%emt 0:00:07]} Kg7 {[%emt 0:00:05]} 31. Qf6+ {[%emt 0:00:33]} Qxf6 {[%emt 0:00:02]} 32. Rhxf6 {[%emt 0:00:09]} Rxh2 {[%emt 0:00:29]} 33. d6 {[%emt 0:00:31]} Rd2 {[%emt 0:00:33]} 34. Bd3 {[%emt 0:00:41]} e4 {[%emt 0:02:35]} 35. Bxe4 {[%emt 0:00:08]} Rxd6 {[%emt 0:00:03]} 36. R6f5 {[%emt 0:01:23]} Be3 {[%emt 0:00:11]} 37. Rb5 {[%emt 0:01:23]} Rfd8 {[%emt 0:02:01]} 38. Bd3 {[%emt 0:00:32]} Rd4 {[%emt 0:00:32]} 39. g5 {[%emt 0:01:10]} R8d5 {[%emt 0:02:02]} 40. Rb7 {[%emt 0:00:50]} Rd7 {[%emt 0:00:02]} 41. Rb5 {[%emt 0:31:45]} R7d5 {[%emt 0:03:53]} 42. Rb7 {[%emt 0:00:00]} 1/2-1/2

[Event "SVK-ch Open 2018"]
[Site "Banska Stiavnica"]
[Date "2018.07.15"]
[Round "9"]
[White "Lukac, Roman"]
[Black "Sarkozy, Ladislav"]
[Result "1/2-1/2"]
[ECO "B77"]
[WhiteElo "2089"]
[BlackElo "2247"]
[Annotator "NA"]
[PlyCount "26"]
[EventDate "2018.07.07"]
[EventType "swiss"]
[EventCountry "SVK"]
[SourceTitle "playchess.com"]
[Source "ChessBase"]
[SourceQuality "1"]
[TimeControl "40/5400+30:1800+30"]

1. e4 {[%emt 0:01:42]} c5 {[%emt 0:00:00]} 2. Nf3 {[%emt 0:00:12]} d6 {[%emt 0:00:00]} 3. d4 {[%emt 0:00:18]} cxd4 {[%emt 0:00:00]} 4. Nxd4 {[%emt 0:00:03]} Nf6 {[%emt 0:00:07]} 5. Nc3 {[%emt 0:00:10]} g6 {[%emt 0:00:06]} 6. f3 {[%emt 0:01:48]} Bg7 {[%emt 0:00:07]} 7. Be3 {[%emt 0:00:13]} Nc6 {[%emt 0:00:18]} 8. Qd2 {[%emt 0:00:51]} O-O {[%emt 0:00:08]} 9. Bc4 {[%emt 0:01:52]} Bd7 {[%emt 0:00:18]} 10. Bb3 {[%emt 0:01:05]} Rc8 {[%emt 0:00:48]} 11. h4 {[%emt 0:00:47]} h5 {[%emt 0:00:43]} 12. O-O-O {[%emt 0:00:39]} Ne5 {[%emt 0:00:05]} 13. Bg5 {[%emt 0:00:20]} Rc5 {[%emt 0:00:22]} 1/2-1/2

[Event "SVK-ch Open 2018"]
[Site "Banska Stiavnica"]
[Date "2018.07.15"]
[Round "9"]
[White "Odler, Daniel"]
[Black "Gombar, Peter"]
[Result "1/2-1/2"]
[ECO "B00"]
[WhiteElo "2067"]
[BlackElo "1974"]
[Annotator "NA"]
[PlyCount "58"]
[EventDate "2018.07.07"]
[EventType "swiss"]
[EventCountry "SVK"]
[SourceTitle "playchess.com"]
[Source "ChessBase"]
[SourceQuality "1"]
[TimeControl "40/5400+30:1800+30"]

1. e4 {[%emt 0:00:00]} b6 {[%emt 0:00:00]} 2. c4 {[%emt 0:00:00]} Bb7 {[%emt 0:00:00]} 3. Nc3 {[%emt 0:00:03]} e5 {[%emt 0:01:13]} 4. Nf3 {[%emt 0:01:21]} Nc6 {[%emt 0:00:29]} 5. d4 {[%emt 0:01:59]} exd4 {[%emt 0:12:37]} 6. Nxd4 {[%emt 0:00:16]} Nxd4 {[%emt 0:00:22]} 7. Qxd4 {[%emt 0:00:08]} Qf6 {[%emt 0:00:26]} 8. Be3 {[%emt 0:02:51]} Bc5 {[%emt 0:05:23]} 9. Qxf6 {[%emt 0:02:00]} Nxf6 {[%emt 0:00:08]} 10. Bxc5 {[%emt 0:00:11]} bxc5 {[%emt 0:00:04]} 11. f3 {[%emt 0:01:14]} O-O-O {[%emt 0:07:45]} 12. g4 {[%emt 0:05:47]} g5 {[%emt 0:05:50]} 13. h4 {[%emt 0:08:31]} h6 {[%emt 0:02:00]} 14. Rd1 {[%emt 0:05:28]} d6 {[%emt 0:07:45]} 15. Rd2 {[%emt 0:00:58]} Nd7 {[%emt 0:01:18]} 16. Rdh2 {[%emt 0:03:30]} Ne5 {[%emt 0:05:57]} 17. Kf2 {[%emt 0:01:14]} Rhg8 {[%emt 0:05:18]} 18. hxg5 {[%emt 0:01:51]} hxg5 {[%emt 0:01:19]} 19. Rh7 {[%emt 0:03:15]} Rg6 {[%emt 0:07:47]} 20. Be2 {[%emt 0:02:47]} Rdg8 {[%emt 0:01:06]} 21. Kg3 {[%emt 0:01:53]} Kd8 {[%emt 0:03:35]} 22. b3 {[%emt 0:00:56]} Bc6 {[%emt 0:04:40]} 23. Nd1 {[%emt 0:03:01]} Bd7 {[%emt 0:02:09]} 24. Ne3 {[%emt 0:04:30]} Be6 {[%emt 0:00:54]} 25. R1h6 {[%emt 0:06:49]} Rxh6 {[%emt 0:00:59]} 26. Rxh6 {[%emt 0:01:44]} Ng6 {[%emt 0:00:47]} 27. Ng2 {[%emt 0:02:30]} Ne5 {[%emt 0:01:32]} 28. Rh7 {[%emt 0:01:16]} Ke8 {[%emt 0:00:15]} 29. Ne3 {[%emt 0:02:29]} Ng6 {[%emt 0:01:58]} 1/2-1/2

[Event "SVK-ch Open 2018"]
[Site "Banska Stiavnica"]
[Date "2018.07.15"]
[Round "9"]
[White "Bojda, Lubomir"]
[Black "Molnar, Erno"]
[Result "1/2-1/2"]
[ECO "A48"]
[WhiteElo "2064"]
[BlackElo "2231"]
[Annotator "NA"]
[PlyCount "60"]
[EventDate "2018.07.07"]
[EventType "swiss"]
[EventCountry "SVK"]
[SourceTitle "playchess.com"]
[Source "ChessBase"]
[SourceQuality "1"]
[TimeControl "40/5400+30:1800+30"]

1. d4 {[%emt 0:00:00]} Nf6 {[%emt 0:04:20]} 2. Nf3 {[%emt 0:00:54]} g6 {[%emt 0:00:06]} 3. Nbd2 {[%emt 0:01:48]} d5 {[%emt 0:01:19]} 4. c4 {[%emt 0:00:35]} Bg7 {[%emt 0:07:17]} 5. e3 {[%emt 0:02:20]} O-O {[%emt 0:00:52]} 6. Qb3 {[%emt 0:01:37]} e6 {[%emt 0:04:30]} 7. Be2 {[%emt 0:03:26]} b6 {[%emt 0:02:29]} 8. O-O {[%emt 0:02:43]} Bb7 {[%emt 0:02:35]} 9. cxd5 {[%emt 0:02:58]} exd5 {[%emt 0:02:00]} 10. Ne5 {[%emt 0:01:38]} Nbd7 {[%emt 0:02:31]} 11. f4 {[%emt 0:08:26]} c5 {[%emt 0:04:50]} 12. Bf3 {[%emt 0:03:39]} Rc8 {[%emt 0:06:10]} 13. Rd1 {[%emt 0:04:39]} Qe7 {[%emt 0:11:48]} 14. Nf1 {[%emt 0:04:16]} Rc7 {[%emt 0:04:29]} 15. Bd2 {[%emt 0:05:21]} Rfc8 {[%emt 0:09:40]} 16. Qa3 {[%emt 0:03:47]} Ba8 {[%emt 0:04:31]} 17. Rac1 {[%emt 0:01:31]} Bf8 {[%emt 0:04:12]} 18. Qa6 {[%emt 0:09:25]} Bb7 {[%emt 0:04:33]} 19. Qe2 {[%emt 0:01:43]} a5 {[%emt 0:02:00]} 20. Qe1 {[%emt 0:01:36]} c4 {[%emt 0:01:44]} 21. h3 {[%emt 0:06:03]} Ne4 {[%emt 0:00:51]} 22. Bxe4 {[%emt 0:04:58]} dxe4 {[%emt 0:00:02]} 23. Nxd7 {[%emt 0:00:47]} Qxd7 {[%emt 0:00:20]} 24. a3 {[%emt 0:04:34]} Bd5 {[%emt 0:00:14]} 25. Ng3 {[%emt 0:01:56]} Rb7 {[%emt 0:03:03]} 26. Ne2 {[%emt 0:00:24]} Be7 {[%emt 0:01:47]} 27. Qf1 {[%emt 0:00:47]} Bd8 {[%emt 0:00:51]} 28. Nc3 {[%emt 0:02:53]} b5 {[%emt 0:00:19]} 29. Qe1 {[%emt 0:00:50]} Ra8 {[%emt 0:01:16]} 30. Qe2 {[%emt 0:00:34]} Rc8 {[%emt 0:01:29]} 1/2-1/2

[Event "SVK-ch Open 2018"]
[Site "Banska Stiavnica"]
[Date "2018.07.15"]
[Round "9"]
[White "Bartek, Ladislav"]
[Black "Brnusak, Tomas"]
[Result "1/2-1/2"]
[ECO "B44"]
[WhiteElo "2049"]
[BlackElo "1910"]
[Annotator "NA"]
[PlyCount "83"]
[EventDate "2018.07.07"]
[EventType "swiss"]
[EventCountry "SVK"]
[SourceTitle "playchess.com"]
[Source "ChessBase"]
[SourceQuality "1"]
[TimeControl "40/5400+30:1800+30"]

1. e4 {[%emt 0:00:00]} c5 {[%emt 0:00:00]} 2. Nf3 {[%emt 0:00:30]} e6 {[%emt 0:00:30]} 3. d4 {[%emt 0:00:30]} cxd4 {[%emt 0:00:16]} 4. Nxd4 {[%emt 0:00:06]} Nc6 {[%emt 0:00:35]} 5. Nb5 {[%emt 0:00:07]} d6 {[%emt 0:02:25]} 6. Bf4 {[%emt 0:00:07]} e5 {[%emt 0:02:47]} 7. Be3 {[%emt 0:00:07]} Nf6 {[%emt 0:02:03]} 8. Bg5 {[%emt 0:00:08]} Be6 {[%emt 0:02:59]} 9. Bxf6 {[%emt 0:00:57]} gxf6 {[%emt 0:01:21]} 10. Nd2 {[%emt 0:00:41]} a6 {[%emt 0:01:37]} 11. Nc3 {[%emt 0:00:07]} f5 {[%emt 0:01:46]} 12. Bc4 {[%emt 0:02:58]} Qg5 {[%emt 0:01:19]} 13. Bxe6 {[%emt 0:04:04]} fxe6 {[%emt 0:01:11]} 14. exf5 {[%emt 0:02:30]} Qxf5 {[%emt 0:02:49]} 15. Nde4 {[%emt 0:05:47]} d5 {[%emt 0:03:02]} 16. Ng3 {[%emt 0:00:17]} Qg6 {[%emt 0:01:21]} 17. Qh5 {[%emt 0:02:56]} O-O-O {[%emt 0:01:01]} 18. Qxg6 {[%emt 0:00:16]} hxg6 {[%emt 0:00:10]} 19. O-O-O {[%emt 0:01:36]} Bc5 {[%emt 0:01:09]} 20. f3 {[%emt 0:00:38]} b5 {[%emt 0:02:12]} 21. a3 {[%emt 0:02:00]} Kb7 {[%emt 0:05:47]} 22. Kb1 {[%emt 0:00:59]} Rh4 {[%emt 0:06:56]} 23. h3 {[%emt 0:01:58]} b4 {[%emt 0:04:20]} 24. axb4 {[%emt 0:00:07]} Rxb4 {[%emt 0:01:27]} 25. Na2 {[%emt 0:01:22]} Rh4 {[%emt 0:01:42]} 26. Rd3 {[%emt 0:02:30]} Kc7 {[%emt 0:01:32]} 27. Ne2 {[%emt 0:02:41]} Nb4 {[%emt 0:02:38]} 28. Nxb4 {[%emt 0:00:14]} Rxb4 {[%emt 0:00:59]} 29. c3 {[%emt 0:01:20]} Rb6 {[%emt 0:03:08]} 30. Kc2 {[%emt 0:00:39]} Rdb8 {[%emt 0:01:13]} 31. b4 {[%emt 0:01:06]} Bd6 {[%emt 0:00:57]} 32. Rc1 {[%emt 0:04:21]} Rc6 {[%emt 0:01:23]} 33. Kd1 {[%emt 0:01:16]} Rc4 {[%emt 0:01:38]} 34. Ra1 {[%emt 0:01:40]} Rb6 {[%emt 0:01:07]} 35. Rd2 {[%emt 0:03:07]} Kb7 {[%emt 0:04:14]} 36. Rc2 {[%emt 0:01:07]} e4 {[%emt 0:02:29]} 37. fxe4 {[%emt 0:05:52]} Rxe4 {[%emt 0:00:31]} 38. Kd2 {[%emt 0:02:27]} Bf4+ {[%emt 0:02:57]} 39. Nxf4 {[%emt 0:00:42]} Rxf4 {[%emt 0:00:06]} 40. Ke3 {[%emt 0:00:54]} e5 {[%emt 0:00:43]} 41. Rf2 {[%emt 0:32:14]} Rbf6 {[%emt 0:31:01]} 42. Raf1 {[%emt 0:00:12]} 1/2-1/2

[Event "SVK-ch Open 2018"]
[Site "Banska Stiavnica"]
[Date "2018.07.15"]
[Round "9"]
[White "Posa, Norbert"]
[Black "Lintner, Igor"]
[Result "0-1"]
[ECO "A40"]
[WhiteElo "2036"]
[BlackElo "2173"]
[Annotator "NA"]
[PlyCount "58"]
[EventDate "2018.07.07"]
[EventType "swiss"]
[EventCountry "SVK"]
[SourceTitle "playchess.com"]
[Source "ChessBase"]
[SourceQuality "1"]
[TimeControl "40/5400+30:1800+30"]

1. d4 {[%emt 0:03:06]} e6 {[%emt 0:00:00]} 2. Bf4 {[%emt 0:00:05]} Nf6 {[%emt 0:02:28]} 3. Nf3 {[%emt 0:00:33]} c5 {[%emt 0:00:08]} 4. c3 {[%emt 0:00:20]} d5 {[%emt 0:02:39]} 5. e3 {[%emt 0:00:17]} Nc6 {[%emt 0:01:14]} 6. Nbd2 {[%emt 0:00:06]} Be7 {[%emt 0:02:51]} 7. Bd3 {[%emt 0:05:22]} O-O {[%emt 0:08:09]} 8. h3 {[%emt 0:01:11]} a6 {[%emt 0:01:38]} 9. a4 {[%emt 0:00:12]} b6 {[%emt 0:00:38]} 10. O-O {[%emt 0:00:26]} Bb7 {[%emt 0:00:13]} 11. Ne5 {[%emt 0:01:07]} Nxe5 {[%emt 0:03:33]} 12. Bxe5 {[%emt 0:06:40]} Qe8 {[%emt 0:04:46]} 13. Re1 {[%emt 0:06:57]} Nd7 {[%emt 0:01:25]} 14. Qg4 {[%emt 0:18:54]} g6 {[%emt 0:10:14]} 15. Bf4 {[%emt 0:03:02]} f5 {[%emt 0:01:53]} 16. Qg3 {[%emt 0:02:01]} Bf6 {[%emt 0:05:13]} 17. Nf3 {[%emt 0:02:11]} Kh8 18. Bh6 {[%emt 0:06:11]} Rg8 {[%emt 0:04:57]} 19. Ng5 {[%emt 0:03:29]} e5 {[%emt 0:04:51]} 20. h4 {[%emt 0:02:20]} Qe7 21. f4 {[%emt 0:05:54]} e4 {[%emt 0:06:16]} 22. Be2 {[%emt 0:00:09]} Bg7 {[%emt 0:00:32]} 23. Bxg7+ Rxg7 24. h5 {[%emt 0:15:18]} h6 {[%emt 0:02:50]} 25. Nh3 {[%emt 0:09:14]} gxh5 {[%emt 0:00:12]} 26. Qf2 {[%emt 0:02:12]} Rag8 {[%emt 0:00:55]} 27. Bxh5 {[%emt 0:01:48]} Nf6 {[%emt 0:00:25]} 28. Qh4 {[%emt 0:01:20]} Rxg2+ {[%emt 0:08:21]} 29. Kf1 {[%emt 0:00:01]} Ng4 {[%emt 0:01:08]} 0-1

[Event "SVK-ch Open 2018"]
[Site "Banska Stiavnica"]
[Date "2018.07.15"]
[Round "9"]
[White "Toma, Rudolf"]
[Black "Jencopala, Alexander"]
[Result "0-1"]
[ECO "A88"]
[WhiteElo "2018"]
[BlackElo "1943"]
[Annotator "NA"]
[PlyCount "102"]
[EventDate "2018.07.07"]
[EventType "swiss"]
[EventCountry "SVK"]
[SourceTitle "playchess.com"]
[Source "ChessBase"]
[SourceQuality "1"]
[TimeControl "40/5400+30:1800+30"]

1. d4 {[%emt 0:00:00]} f5 {[%emt 0:00:00]} 2. c4 {[%emt 0:00:15]} Nf6 {[%emt 0:00:54]} 3. Nc3 {[%emt 0:00:10]} d6 {[%emt 0:00:52]} 4. g3 {[%emt 0:00:17]} g6 {[%emt 0:00:55]} 5. Bg2 {[%emt 0:00:13]} Bg7 {[%emt 0:00:49]} 6. Nf3 {[%emt 0:05:02]} O-O {[%emt 0:01:30]} 7. O-O {[%emt 0:00:25]} c6 {[%emt 0:02:06]} 8. Qc2 {[%emt 0:01:49]} Qc7 {[%emt 0:01:52]} 9. e4 {[%emt 0:06:30]} e5 {[%emt 0:10:30]} 10. dxe5 {[%emt 0:00:29]} dxe5 {[%emt 0:00:15]} 11. c5 {[%emt 0:05:05]} Qe7 {[%emt 0:04:04]} 12. b4 {[%emt 0:00:34]} fxe4 {[%emt 0:03:21]} 13. Ng5 {[%emt 0:00:37]} Bf5 {[%emt 0:04:42]} 14. Ngxe4 {[%emt 0:00:35]} Nxe4 {[%emt 0:01:49]} 15. Nxe4 {[%emt 0:00:09]} a5 {[%emt 0:01:37]} 16. Be3 {[%emt 0:03:45]} axb4 {[%emt 0:02:33]} 17. Qb3+ {[%emt 0:03:28]} Be6 {[%emt 0:02:37]} 18. Qxb4 {[%emt 0:00:06]} b5 {[%emt 0:01:03]} 19. a3 {[%emt 0:09:03]} Ra4 {[%emt 0:01:37]} 20. Qb2 {[%emt 0:00:24]} Bd5 {[%emt 0:01:05]} 21. Nc3 {[%emt 0:04:38]} Bxg2 {[%emt 0:00:53]} 22. Nxa4 {[%emt 0:01:45]} Bxf1 {[%emt 0:00:26]} 23. Rxf1 {[%emt 0:02:08]} bxa4 {[%emt 0:00:17]} 24. Qb4 {[%emt 0:00:47]} Qa7 {[%emt 0:01:21]} 25. Rd1 {[%emt 0:00:57]} Qc7 {[%emt 0:17:12]} 26. Qxa4 {[%emt 0:01:01]} Rd8 {[%emt 0:00:56]} 27. Rb1 {[%emt 0:02:44]} Nd7 {[%emt 0:01:03]} 28. Rd1 {[%emt 0:03:16]} Nf6 {[%emt 0:06:53]} 29. Rxd8+ {[%emt 0:03:16]} Qxd8 {[%emt 0:00:15]} 30. Qxc6 {[%emt 0:00:18]} Qd1+ {[%emt 0:00:38]} 31. Kg2 {[%emt 0:00:06]} Qd5+ {[%emt 0:00:35]} 32. Qxd5+ {[%emt 0:00:26]} Nxd5 {[%emt 0:00:11]} 33. c6 {[%emt 0:00:46]} Bf8 {[%emt 0:00:12]} 34. Kf3 {[%emt 0:02:51]} Kf7 {[%emt 0:00:40]} 35. Ke4 {[%emt 0:01:26]} Ke6 {[%emt 0:00:42]} 36. Ba7 {[%emt 0:01:06]} Bxa3 {[%emt 0:01:01]} 37. f4 {[%emt 0:01:47]} exf4 {[%emt 0:00:38]} 38. gxf4 {[%emt 0:00:19]} Bd6 {[%emt 0:00:27]} 39. Bd4 {[%emt 0:16:22]} Nxf4 {[%emt 0:01:07]} 40. h4 {[%emt 0:00:34]} Nh5 {[%emt 0:00:45]} 41. Bb6 {[%emt 0:32:19]} Nf6+ {[%emt 0:31:26]} 42. Kf3 {[%emt 0:00:06]} Nd5 {[%emt 0:02:59]} 43. Ba5 {[%emt 0:00:57]} Ne7 {[%emt 0:01:38]} 44. c7 {[%emt 0:02:49]} Kd7 {[%emt 0:00:25]} 45. c8=Q+ {[%emt 0:05:51]} Nxc8 {[%emt 0:00:15]} 46. Kg4 {[%emt 0:00:06]} Be7 {[%emt 0:00:39]} 47. Bc3 {[%emt 0:04:35]} h5+ {[%emt 0:00:30]} 48. Kg3 {[%emt 0:01:52]} Nd6 {[%emt 0:00:15]} 49. Kh3 {[%emt 0:01:47]} Nf5 {[%emt 0:00:17]} 50. Be1 {[%emt 0:00:10]} Ke6 {[%emt 0:00:31]} 51. Bf2 {[%emt 0:00:16]} Bxh4 {[%emt 0:00:17]} 0-1